Cogmind - Beta 15 @@@ ROGUE MODE // 2025.05.15 @ 15:34:21 Player: Rubbe Result: Destroyed by Y-45 Defender with Heavy Assault Rifle Performance ------------- Evolutions (2) 1000 Regions Visited (4) 800 Robots Destroyed (9) 45 Value Destroyed (134) 134 Prototype IDs (0) 0 Alien Tech Used (0) 0 Bonus (0) 0 TOTAL SCORE: 1979 Bonus ------- None Cogmind --------- Core Integrity 0/550 Matter 218/300 Energy 96/100 System Corruption 1% Temperature Cool (28) Movement Hovering (60) Location -8/Materials Parts ------- > --- POWER (2) -------- (None) > --- PROPULSION (3) --- Airjet > --- UTILITY (4) ------ (None) > --- WEAPON (2) ------- (None) > --- INVENTORY (5) ---- Airjet Airjet Peak State ------------ > --- POWER ------------ (None) > --- PROPULSION ------- (None) > --- UTILITY ---------- Drone Bay Drone Bay Drone Bay Drone Bay > --- WEAPON ----------- (None) > --- INVENTORY -------- Drone Bay [Rating: 20] Favorites ----------- Power Light Ion Engine Engine Light Ion Engine Propulsion Flight Unit Hover Unit Airjet Flight Unit Flight Unit Utility Drone Bay Device Drone Bay Weapon Grenade Launcher Energy Gun Medium Laser Launcher Grenade Launcher Impact Weapon Hammer Build | -11 -10 -9 -9 -8 ------- Run | Yrd Mat Mat Sto Mat Slots Evolved 4 | . . 2 . 2 Power 1 | . . 1 . . Propulsion 1 | . . 1 . . Utility 2 | . . . . 2 Weapon . | . . . . . Parts Attached 18 | . 7 1 4 6 Power 3 | . 1 1 1 . Engine 3 | . 1 1 1 . Core . | . . . . . Reactor . | . . . . . Propulsion 3 | . 2 . . 1 Treads . | . . . . . Leg . | . . . . . Wheel . | . . . . . Hover 1 | . . . . 1 Flight 2 | . 2 . . . Utility 8 | . 1 . 2 5 Device 8 | . 1 . 2 5 Storage . | . . . . . Processor . | . . . . . Hackware . | . . . . . Protection . | . . . . . Artifact . | . . . . . Weapon 4 | . 3 . 1 . Energy Gun 1 | . 1 . . . Energy Cannon . | . . . . . Ballistic Gun . | . . . . . Ballistic Cannon . | . . . . . Launcher 2 | . 1 . 1 . Special Weapon . | . . . . . Impact Weapon 1 | . 1 . . . Slashing Weapon . | . . . . . Piercing Weapon . | . . . . . Special Melee Weapon . | . . . . . Unidentified Prototypes . | . . . . . Parts Lost 17 | . . . 12 5 Power 3 | . . . 3 . Propulsion 2 | . . . 2 . Utility 8 | . . . 3 5 Weapon 4 | . . . 4 . Highest Loss Streak 12 | . . . 12 5 To Critical Strikes . | . . . . . Average Backups 1 | . . 2 2 . Power . | . . . . . Propulsion . | . . . . . Utility . | . . . . . Weapon . | . . 2 1 . Tool/Special . | . . . . . Unused Backups . | . . . . . Power . | . . . . . Propulsion . | . . . . . Utility . | . . . . . Weapon . | . . . . . Tool/Special . | . . . . . Average Slot Usage (%) 48 | . 52 77 58 28 Engine 10 | . 12 22 15 . Flight 5 | . 1 22 15 . Device 16 | . 12 11 9 28 Energy Gun 7 | . 12 11 6 . Launcher 7 | . 12 11 7 . Peak Build Rating 20 | . 6 7 12 20 Average Rating 7 | . 3 7 6 16 On Entrance 3 | . . 6 7 2 Naked Turns 108 | . 45 . 13 50 Heaviest Build 24 | . 9 12 12 24 Greatest Support 8 | 3 8 8 8 8 Greatest Overweight (x) 7 | . 2 1 3 7 Average Overweight (x) 1 | . 1 1 . 3 Largest Inventory Capacity 5 | 5 5 5 5 5 Average Capacity 5 | 5 5 5 5 5 Most Carried 5 | . 3 2 5 4 Average Carried 1 | . 1 2 2 . Final Capacity 5 | 5 5 5 5 5 Final Carried 5 | . 3 2 5 2 Class Distribution -------------------- 100% | Mutant Dominant Class ---------------- Mutant | -10/Materials Mutant | -9/Materials Mutant | -9/Storage Mutant | -8/Materials Resources | -11 -10 -9 -9 -8 ----------- Run | Yrd Mat Mat Sto Mat Matter Collected 318 | 187 12 . 119 . Remotely . | . . . . . Salvage Created 130 | . 25 . 105 . Parts 12 | . 5 . 7 . Haulers Intercepted . | . . . . . Recyclers Shooed . | . . . . . Parts Field Recycled . | . . . . . Retrieved Matter . | . . . . . Parts Self-Destructed . | . . . . . Prevented . | . . . . . Kills | -11 -10 -9 -9 -8 ------- Run | Yrd Mat Mat Sto Mat Combat Hostiles Destroyed 6 | . 3 . 3 . Guns 2 | . 2 . . . AOE 3 | . 1 . 2 . Classes Destroyed 5 | . 2 . 3 . Worker 1 | . . . 1 . Builder 1 | . 1 . . . Mechanic 1 | . . . 1 . Swarmer 5 | . 3 . 2 . Sentry 1 | . . . 1 . Best Kill Streak 4 | . 4 . 2 . Combat Bots Only 3 | . 3 . 2 . Max Kills in Single Turn 2 | . 2 . 1 . Gunslinging . | . . . . . Exploded 1 | . 1 . 1 . Melee . | . . . . . Uniques/NPCs Destroyed . | . . . . . Combat | -11 -10 -9 -9 -8 -------- Run | Yrd Mat Mat Sto Mat Hostile Shots Fired 201 | . 9 . 96 96 Missed 52 | . 2 . 24 26 Hits 149 | . 7 . 72 70 Projectile 149 | . 7 . 72 70 AOE 1 | . . . . 1 Critical Strikes 4 | . . . 3 1 Damage Taken 2187 | . 71 . 936 1180 Core 855 | . 37 . 260 558 Absorbed by Shields . | . . . . . Core Remaining (%) 73 | 100 85 . 35 . Volleys Fired 20 | . 4 . 16 . Largest 2 | . 2 . 1 . Hottest 80 | . 80 . 50 . Shots Fired 22 | . 6 . 16 . Gun 14 | . 4 . 10 . Cannon . | . . . . . Launcher 8 | . 2 . 6 . Special . | . . . . . Kinetic . | . . . . . Thermal 14 | . 4 . 10 . Explosive 8 | . 2 . 6 . Electromagnetic . | . . . . . Robot Hit Streak 6 | . 2 . 6 . Robot Miss Streak 2 | . . . 2 . Penetration Max . | . . . . . Secondary Targets . | . . . . . Shots Hit Robots 20 | . 2 . 18 . Core Hits 11 | . 4 . 7 . Critical Kills . | . . . . . Critical Parts Destroyed 1 | . . . 1 . Critical Strikes 4 | . . . 4 . Burn 2 | . . . 2 . Smash 2 | . . . 2 . Melee Attacks 14 | . . . 14 . Impact 14 | . . . 14 . Slashing . | . . . . . Piercing . | . . . . . Sneak Attacks 1 | . . . 1 . Combat Hostiles . | . . . . . Follow-up Attacks . | . . . . . Damage Inflicted 716 | . 192 . 524 . Guns 89 | . 26 . 63 . Cannons . | . . . . . Explosions 312 | . 166 . 146 . Melee 315 | . . . 315 . Ramming . | . . . . . Kinetic . | . . . . . Thermal 89 | . 26 . 63 . Explosive 312 | . 166 . 146 . Electromagnetic . | . . . . . Impact 315 | . . . 315 . Slashing . | . . . . . Piercing . | . . . . . Highest Corruption 1 | . . . . 1 Average Corruption 1 | . . . . 1 Corruption Purged . | . . . . . Corruption Blocked . | . . . . . Overload Shots . | . . . . . Overflow Damage 83 | . 10 . 73 . Projectiles . | . . . . . Explosions 24 | . 10 . 14 . Melee 59 | . . . 59 . Knockbacks . | . . . . . Impact . | . . . . . Kinetic . | . . . . . Secondary . | . . . . . Self-Inflicted Damage 89 | . 21 . 68 . Shots 3 | . 1 . 2 . Rammed . | . . . . . Targets Rammed . | . . . . . Kicked . | . . . . . Crushed . | . . . . . Highest Temperature 108 | . 46 . 108 . Average Temperature 35 | . 22 . 40 . Received Heat Transfer 903 | . . . 336 567 Siege Activations . | . . . . . Martial Activations . | . . . . . Shielding Activations . | . . . . . Robots Disrupted . | . . . . . Combat Hostiles . | . . . . . Robots Corrupted 2 | . . . 2 . Combat Hostiles 1 | . . . 1 . Parts Fried . | . . . . . Impact Corruptions 3 | . . . 3 . Robots Melted . | . . . . . Combat Hostiles . | . . . . . Parts Melted . | . . . . . Heat Transferred 407 | . 74 . 333 . Parts Sabotaged . | . . . . . Parts Stolen . | . . . . . Parts Stripped . | . . . . . Power Chain Reactions . | . . . . . Alert | -11 -10 -9 -9 -8 ------- Run | Yrd Mat Mat Sto Mat Maximum Alert Level . | . . . . . Low Security (%) 100 | 100 100 100 100 100 Level 1 . | . . . . . Level 2 . | . . . . . Level 3 . | . . . . . Level 4 . | . . . . . Level 5 . | . . . . . High Security . | . . . . . Max Security . | . . . . . Peak Influence 120 | . 89 30 120 120 Initial 30 | . . 30 12 21 Average 11 | . 6 30 23 9 Influence Increases 479 | . 96 . 233 150 Destroy 0b10 Robot/C 120 | . 60 . 60 . Destroy 0b10 Robot/NC 15 | . 5 . 10 . Destroy Leader 20 | . 10 . 10 . Successful Hack 13 | . 7 . 6 . Disable Machine 30 | . . . 30 . Destroy Structure 56 | . 14 . 42 . Lose Combat Pursuer 225 | . . . 75 150 Influence Decreases 359 | . 23 43 211 82 Entered New Map 92 | . . 43 18 31 Time Decay 157 | . 23 . 93 41 Lost Part 100 | . . . 90 10 Lost Ally 10 | . . . 10 . Squads Dispatched 4 | . . . 2 2 Investigation 1 | . . . . 1 Extermination . | . . . . . Reinforcement 3 | . . . 2 1 Assault . | . . . . . Garrison . | . . . . . Intercept . | . . . . . Searches Triggered . | . . . . . Construction Impeded . | . . . . . Haulers Reinforced . | . . . . . Active Scanning Responses . | . . . . . Cargo Convoy Interrupts . | . . . . . Stealth | -11 -10 -9 -9 -8 --------- Run | Yrd Mat Mat Sto Mat Distress Signals 4 | . . . 1 3 Communications Jammed . | . . . . . Distress Signals . | . . . . . Times Spotted 44 | . 5 . 19 20 Peak Tracking Total 12 | . 3 . 7 12 Tactical Retreats 6 | . . . 3 3 Traps | -11 -10 -9 -9 -8 ------- Run | Yrd Mat Mat Sto Mat Traps Triggered 1 | . . . . 1 Indirectly . | . . . . . Trap Hack Attempts . | . . . . . Triggered . | . . . . . Disarmed . | . . . . . Reprogrammed . | . . . . . Reused . | . . . . . Traps Extracted . | . . . . . Installed . | . . . . . Triggered . | . . . . . Machines | -11 -10 -9 -9 -8 ---------- Run | Yrd Mat Mat Sto Mat Machines Disabled 2 | . . . 2 . Max in Single Turn 1 | . . . 1 . Machines Repaired . | . . . . . Machines Dismantled . | . . . . . Machines Sabotaged . | . . . . . Overloaded Fab Kills . | . . . . . Hacking | -11 -10 -9 -9 -8 --------- Run | Yrd Mat Mat Sto Mat Machines Accessed 4 | . 2 . 1 1 Terminals 3 | . 1 . 1 1 Fabricators . | . . . . . Repair Stations . | . . . . . Recycling Units 1 | . 1 . . . Scanalyzers . | . . . . . Garrison Access . | . . . . . Total Hacks 9 | . 6 . 2 1 Successful 6 | . 3 . 2 1 Failed 3 | . 3 . . . Catastrophic . | . . . . . Database Lockouts . | . . . . . Manual . | . . . . . Terminals 8 | . 5 . 2 1 Fabricators . | . . . . . Repair Stations . | . . . . . Recycling Units 1 | . 1 . . . Scanalyzers . | . . . . . Garrison Access . | . . . . . Terminal Hacks 5 | . 2 . 2 1 Record 4 | . 2 . 1 1 Dispatch Records 1 | . . . 1 . Fabricator Hacks . | . . . . . Repair Station Hacks . | . . . . . Recycling Unit Hacks 1 | . 1 . . . Retrieve Components 1 | . 1 . . . Scanalyzer . | . . . . . Garrison Access Hacks . | . . . . . Unauthorized Hacks . | . . . . . Terminals . | . . . . . Fabricators . | . . . . . Repair Stations . | . . . . . Recycling Units . | . . . . . Scanalyzers . | . . . . . Garrison Access . | . . . . . Data Cores Recovered . | . . . . . Used . | . . . . . Hacking Detections 1 | . 1 . . . Full Trace Events . | . . . . . Feedback Events . | . . . . . Feedback Blocked . | . . . . . Robot Schematics Acquired . | . . . . . Robots Built . | . . . . . Authchips . | . . . . . Time . | . . . . . Total Robot Build Rating . | . . . . . Part Schematics Acquired . | . . . . . Parts Built . | . . . . . Authchips . | . . . . . Time . | . . . . . Total Part Build Rating . | . . . . . Parts Repaired . | . . . . . Time . | . . . . . Parts Recycled . | . . . . . Recycled Matter . | . . . . . Retrieved Matter . | . . . . . Retrieved Components 3 | . 3 . . . Parts Scanalyzed . | . . . . . Part Schematics Acquired . | . . . . . Parts Damaged . | . . . . . Bothacking | -11 -10 -9 -9 -8 ------------ Run | Yrd Mat Mat Sto Mat Used RIF Installer . | . . . . . Robots Hacked . | . . . . . Non-combat . | . . . . . Combat . | . . . . . Robot Hacks Applied . | . . . . . Relay Couplers Released . | . . . . . Fabnet Peak Effective % . | . . . . . Robots Rewired . | . . . . . Allies Hacked . | . . . . . Hacks Repelled . | . . . . . Allies | -11 -10 -9 -9 -8 -------- Run | Yrd Mat Mat Sto Mat Total Allies . | . . . . . Largest Group . | . . . . . Highest-Rated Group . | . . . . . Highest-Rated Ally . | . . . . . Total Orders . | . . . . . Ally Attacks . | . . . . . Total Damage . | . . . . . Kills . | . . . . . Allies Corrupted . | . . . . . Allies Melted . | . . . . . Intel | -11 -10 -9 -9 -8 ------- Run | Yrd Mat Mat Sto Mat Active Infowar (turns) 809 | . 557 10 242 . Seismic 809 | . 557 10 242 . Robot Analysis Total . | . . . . . Derelict Logs Recovered . | . . . . . Drone Launches 24 | . . . 9 15 Drone Recoveries 17 | . . . 8 9 Exploration | -11 -10 -9 -9 -8 ------------- Run | Yrd Mat Mat Sto Mat Turns Passed 1354 | 15 615 10 357 357 Spaces Moved 683 | 29 228 8 255 163 Core 469 | 29 199 . 81 160 Treads . | . . . . . Legs . | . . . . . Wheels . | . . . . . Hover 3 | . . . . 3 Flight 211 | . 29 8 174 . Fastest Speed 40 | 50 50 117 40 50 Average Speed 125 | 50 107 117 101 203 Slowest Speed 400 | 50 150 117 200 400 Overloaded Moves . | . . . . . Propulsion Burnouts . | . . . . . Robots Hopped . | . . . . . Potential Cave-ins . | . . . . . Cave-ins Triggered . | . . . . . Exploration Rate (%) 18 | 3 28 1 39 20 Regions Visited 4 Branch Regions 1 Pre-discovered Areas . | . . . . . Known Exits Taken . | . . . . . Unknown Exits Taken 4 | 1 1 1 1 . Scrap Searched . | . . . . . Spaces Dug . | . . . . . Terrain Destroyed 53 | . 14 . 39 . Melee . | . . . . . Projectile . | . . . . . AOE 53 | . 14 . 39 . Terrain Rammed . | . . . . . Walls Destroyed . | . . . . . Machines Disabled . | . . . . . Actions | -11 -10 -9 -9 -8 --------- Run | Yrd Mat Mat Sto Mat Total 1126 | 28 591 8 311 188 Wait 373 | . 344 . 13 16 Move 679 | 28 227 7 254 163 Hop . | . . . . . Pick Up 20 | . 9 . 8 3 Fast Attach . | . . . . . Attach 18 | . 6 1 5 6 Detach . | . . . . . Swap 2 | . 1 . 1 . Drop . | . . . . . Fire 20 | . 4 . 16 . Melee 14 | . . . 14 . Ram . | . . . . . Kick . | . . . . . Crush . | . . . . . Escape Stasis . | . . . . . Rewire . | . . . . . Trap . | . . . . . Miscellaneous . | . . . . . Route ------- -11/Scrapyard -10/Materials -9/Materials -9/Storage -8/Materials (discovered 1 exit: [*Fac]) History --------- Turn | Location | Event 7 | -11/Scrapyard | Discovered new exit (range 16) 16 | -11/Scrapyard | Entered Materials 305 | -10/Materials | Build established: Mutant 616 | -10/Materials | Discovered new exit (range 12) 631 | -10/Materials | Entered another Materials area 631 | -9/Materials | Evolved 2 slots: Power x1, Propulsion x1 632 | -9/Materials | Discovered new exit (range 7) 641 | -9/Materials | Entered Storage 967 | -9/Storage | Core integrity fell below 50% 991 | -9/Storage | Discovered new exit (range 15) 998 | -9/Storage | Entered Materials 998 | -8/Materials | Evolved 2 slots: Utility x2 1017 | -8/Materials | Lost 12 parts (3p2n3u4w) 1319 | -8/Materials | Lost 4 allies 1323 | -8/Materials | Core integrity fell below 50% 1332 | -8/Materials | Lost 5 parts (5u) 1340 | -8/Materials | Discovered new exit (range 16) 1347 | -8/Materials | Core integrity fell below 20% 1355 | -8/Materials | Destroyed by Y-45 Defender with Heavy Assault Rifle Last Messages --------------- G-47 Trooper IFF system glitched. K-01 Serf destroyed. G-50 Soldier misfires. K-01 Serf collects debris. G-50 Soldier IFF system glitched. R-06 Scavenger destroyed. R-06 Scavenger collects Corrupted Aluminum Leg. W-25 Informer sends out distress signal. K-01 Serf collects debris. Penetrated by Slug. EXIT=FOUND O-16 Technician: "IFF HANDSHAKE FAILED. SECURING TERMINAL." O-16 Technician uses terminal to summon reinforcements. ALERT: Hostiles spotted, dispatching reinforcements to Terminal M001. O-16 Technician locks terminal. Acquired Airjet. Critical hit (Burn: +37). Map ----- +----------------------------------------------------+ | | | | | | | | | | | | | | | | | | | | | | | | | ?????????????????????????????????????????????????? | | ?????????????????????????????????????????????????? | | ?????????????????????????????????????????????????? | | ?????????????????????????????????????????????????? | | ?????????????????????????????????????????????????? | | ?????????????????????????????????????????????????? | | ?????????????????????????????????????????????????? | | ?????????????????????????????????????????????????? | | ?????????????????????????????????????????????????? | | ??????????????????????#############??????????????? | | ??????????????????????# # #??????????????? | | ?????????????????????## [ # < ############???? | | ?????????????????????#Y # ????? | | ??????????????????????# @! # ????? | | ??????????????????????# == # ??????? | | ??????????????????????# ! + """ """????????? | | ?? ??????????????????# # """ """ ???? | | ?? ??????????????????# "S # """ """ ??? | | ?? ??????????????????# """ # ??? | | ?+ ??????????????????# "" # ??? | | ?# ??????????????????# # """ ""????? | | ?# ??????????????????######### "T" """ ?"?????? | | ?# ??????????????????????????# """ """ """???? | | ?# #?????????????????????????# ??? | | ## +?????????????????????????# ??? | | ? #?????????????????????????# ##########?????? | | ? #?????????????????????????# #??????????????? | | ?# #?????????????????????????# #??????????????? | | ?# #?????????????????????????# #??????????????? | | ?# #?????????????????????????# #??????????????? | | ?# #?????????????????????????# #??????????????? | | ?# #?????????????????????????# #??????????????? | | ## ###???????????????????????# #??????????????? | | # ###########?????????????# #??????????????? | | # T ############### #??????????????? | | # "" #??????????????? | | # #??????????????? | | # #### %= #??????????????? | +----------------------------------------------------+ Best States ------------- Heat Dissipation 31 Energy Generation 15 Energy Capacity 150 Matter Stores 300 Matter Capacity 300 Sight Range 16 Terrain Scan Density 10 Evasion (%) 62 Item Schematics ----------------- None Robot Schematics ------------------ None Fabricated ------------ Nothing Repaired ---------- Nothing Alien Tech Used ----------------- None Achievements -------------- Power Corrupts Release The Drones! Challenges ------------ None Game ------ Seed MetafiberThiefExoskeleton Manual? 0 Play Time 00:11:15 Cumulative 8.7 hours Start 2025.05.15 @ 15:15:56 End 2025.05.15 @ 15:34:21 Sessions 1 Manual Loads 0 Difficulty Rogue Special Mode None Game No. 33 Rogue 33 Adventurer 0 Explorer 0 Win Type - Total 0 Types 0/0/0/0/0/0/0/0/0/0 Lore% 6 Gallery% 15 Achievement% 18 Wizard Run 0 Options --------- Layout 1 ASCII 0 Keyboard 0 Movement Mouse Keybinds 0 Fullscreen 1 Font 24/Smallcaps Map View 50x35 Zoom Use 0% Tactical HUD 0 Map Filters NONE Filters NONE Steam 1 RUN: 3529e4f1-f969-475f-a7d6-6af939990dc6